Cogmind - Beta 14 @@@ ROGUE MODE // 2024.08.15 @ 22:50:44 Player: Lord Draconis Result: Destroyed by as-21615 with Assembled Blade Performance ------------- Evolutions (0) 0 Regions Visited (2) 400 Robots Destroyed (25) 125 Value Destroyed (388) 388 Prototype IDs (0) 0 Alien Tech Used (0) 0 Bonus (0) 0 TOTAL SCORE: 913 Bonus ------- None Cogmind --------- Core Integrity 0/250 Matter 176/300 Energy 76/100 System Corruption 0% Temperature Cool (23) Movement Rolling (115) Ox1 Location -10/Mines Parts ------- > --- POWER (1) -------- (None) > --- PROPULSION (2) --- Light Treads Compact Wheel > --- UTILITY (2) ------ Large Storage Unit Seismic Detector > --- WEAPON (2) ------- Beam Cannon Grenade Launcher > --- INVENTORY (15) --- Ion Engine Wheel Compact Wheel Small Storage Unit Visual Processing Unit Improved Terrain Scanner Tractor Beam Medium Laser Medium Laser Particle Gun Assault Rifle Light Assault Rifle Peak State ------------ > --- POWER ------------ Ion Engine > --- PROPULSION ------- Light Treads Compact Wheel > --- UTILITY ---------- Large Storage Unit Seismic Detector > --- WEAPON ----------- Medium Laser Assault Rifle > --- INVENTORY -------- Ion Engine Light Treads Wheel Small Storage Unit Improved Terrain Scanner Medium Laser Assault Rifle Assault Rifle [Rating: 8] Favorites ----------- Power Ion Engine Engine Ion Engine Propulsion Light Treads Treads Light Treads Wheel Compact Wheel Utility Seismic Detector Device Seismic Detector Storage Large Storage Unit Weapon Medium Laser Energy Gun Medium Laser Energy Cannon Beam Cannon Ballistic Gun Assault Rifle Launcher Grenade Launcher Build | -11 -10 -10 ------- Run | Yrd Mat Min Slots Evolved . | . . . Power . | . . . Propulsion . | . . . Utility . | . . . Weapon . | . . . Parts Attached 21 | 7 9 5 Power 2 | 1 1 . Engine 2 | 1 1 . Core . | . . . Reactor . | . . . Propulsion 7 | 2 3 2 Treads 3 | 1 1 1 Leg . | . . . Wheel 4 | 1 2 1 Hover . | . . . Flight . | . . . Utility 3 | 2 1 . Device 1 | 1 . . Storage 2 | 1 1 . Processor . | . . . Hackware . | . . . Protection . | . . . Artifact . | . . . Weapon 9 | 2 4 3 Energy Gun 1 | 1 . . Energy Cannon 1 | . . 1 Ballistic Gun 4 | 1 3 . Ballistic Cannon . | . . . Launcher 3 | . 1 2 Special Weapon . | . . . Impact Weapon . | . . . Slashing Weapon . | . . . Piercing Weapon . | . . . Special Melee Weapon . | . . . Unidentified Prototypes . | . . . Parts Lost 5 | . 1 4 Power 1 | . . 1 Propulsion 3 | . 1 2 Utility . | . . . Weapon 1 | . . 1 Highest Loss Streak 4 | . 1 4 To Critical Strikes . | . . . Average Slot Usage (%) 99 | . 99 95 Engine 14 | . 14 14 Treads 13 | . 13 9 Wheel 14 | . 14 14 Device 14 | . 14 14 Storage 14 | . 14 14 Energy Gun 11 | . 11 . Ballistic Gun 16 | . 16 14 Peak Build Rating 8 | 7 8 8 Average Rating 7 | 5 7 7 On Entrance 5 | . 7 8 Naked Turns . | . . . Heaviest Build 31 | 15 30 31 Greatest Support 20 | 16 20 16 Greatest Overweight (x) 2 | . 2 2 Average Overweight (x) 1 | . 1 1 Largest Inventory Capacity 15 | 8 15 15 Average Capacity 14 | 7 14 15 Most Carried 15 | 5 15 15 Average Carried 12 | 3 13 13 Final Capacity 15 | 8 15 15 Final Carried 15 | 5 15 12 Class Distribution -------------------- 58% | Scavenger-Mutant 41% | Mutant Dominant Class ---------------- Scavenger-Mutant | -10/Materials Scavenger-Mutant | -10/Mines Resources | -11 -10 -10 ----------- Run | Yrd Mat Min Matter Collected 530 | 215 315 . Remotely . | . . . Salvage Created 836 | 90 691 55 Parts 44 | 5 39 . Haulers Intercepted 2 | . 2 . Recyclers Shooed 5 | . 5 . Parts Field Recycled . | . . . Retrieved Matter . | . . . Parts Self-Destructed . | . . . Prevented . | . . . Kills | -11 -10 -10 ------- Run | Yrd Mat Min Combat Hostiles Destroyed 28 | . 16 12 Guns 14 | . 13 1 AOE 14 | . 3 11 Classes Destroyed 8 | 2 5 1 Worker 2 | . 2 . Tunneler 1 | 1 . . Hauler 2 | . 2 . Recycler 3 | 1 2 . Watcher 1 | . 1 . Swarmer 9 | . 9 . Grunt 7 | . 7 . Assembled 12 | . . 12 Best Kill Streak 12 | 2 5 12 Combat Bots Only 12 | . 5 12 Max Kills in Single Turn 4 | 1 4 4 Gunslinging . | . . . Exploded 4 | . 2 4 Melee . | . . . Uniques/NPCs Destroyed . | . . . Combat | -11 -10 -10 -------- Run | Yrd Mat Min Hostile Shots Fired 135 | . 86 49 Missed 41 | . 20 21 Damage Taken 1244 | . 685 559 Core 263 | . 94 169 Absorbed by Shields . | . . . Regen/Repaired (Parts) 23 | . 23 . Core Remaining (%) 100 | 100 . . Volleys Fired 95 | 6 82 7 Largest 2 | 2 2 2 Hottest 80 | 70 70 80 Shots Fired 189 | 12 164 13 Gun 180 | 12 162 6 Cannon 3 | . . 3 Launcher 6 | . 2 4 Special . | . . . Kinetic 95 | 6 83 6 Thermal 88 | 6 79 3 Explosive 6 | . 2 4 Electromagnetic . | . . . Robot Hit Streak 12 | 5 12 3 Robot Miss Streak 4 | 2 4 2 Penetration Max . | . . . Secondary Targets . | . . . Shots Hit Robots 118 | 7 105 6 Core Hits 62 | 3 40 19 Critical Kills . | . . . Critical Parts Destroyed . | . . . Critical Strikes 5 | . 5 . Burn 5 | . 5 . Melee Attacks . | . . . Impact . | . . . Slashing . | . . . Piercing . | . . . Sneak Attacks . | . . . Combat Hostiles . | . . . Follow-up Attacks . | . . . Damage Inflicted 2272 | 104 1497 671 Guns 1371 | 104 1242 25 Cannons 34 | . . 34 Explosions 867 | . 255 612 Melee . | . . . Ramming . | . . . Kinetic 660 | 54 581 25 Thermal 745 | 50 661 34 Explosive 867 | . 255 612 Electromagnetic . | . . . Impact . | . . . Slashing . | . . . Piercing . | . . . Highest Corruption . | . . . Average Corruption . | . . . Corruption Purged . | . . . Corruption Blocked . | . . . Overload Shots . | . . . Overflow Damage 31 | . 1 30 Projectiles . | . . . Explosions 31 | . 1 30 Melee . | . . . Knockbacks . | . . . Impact . | . . . Kinetic . | . . . Secondary . | . . . Self-Inflicted Damage 88 | . 38 50 Shots 5 | . 2 3 Rammed . | . . . Targets Rammed . | . . . Kicked . | . . . Crushed . | . . . Highest Temperature 174 | 45 174 23 Average Temperature 50 | 20 54 12 Received Heat Transfer 239 | . 219 20 Siege Activations . | . . . Robots Corrupted . | . . . Combat Hostiles . | . . . Parts Fried . | . . . Impact Corruptions . | . . . Robots Melted . | . . . Combat Hostiles . | . . . Parts Melted 4 | . 4 . Heat Transferred 2553 | 148 2331 74 Parts Sabotaged . | . . . Parts Stolen . | . . . Parts Stripped . | . . . Power Chain Reactions . | . . . Alert | -11 -10 -10 ------- Run | Yrd Mat Min Peak Influence 277 | 10 277 109 Initial 103 | . 6 103 Average 149 | 4 164 98 Maximum Alert Level 1 | . 1 . Low Security (%) 67 | 100 62 100 Level 1 32 | . 37 . Level 2 . | . . . Level 3 . | . . . Level 4 . | . . . Level 5 . | . . . High Security . | . . . Max Security . | . . . Squads Dispatched 4 | . 4 . Investigation 3 | . 3 . Extermination . | . . . Reinforcement 1 | . 1 . Assault . | . . . Garrison . | . . . Intercept . | . . . Searches Triggered . | . . . Construction Impeded . | . . . Haulers Reinforced . | . . . Active Scanning Responses . | . . . Cargo Convoy Interrupts . | . . . Stealth | -11 -10 -10 --------- Run | Yrd Mat Min Distress Signals 2 | . 2 . Communications Jammed . | . . . Distress Signals . | . . . Times Spotted 48 | . 29 19 Peak Tracking Total 19 | . 5 19 Tactical Retreats 4 | . 3 1 Traps | -11 -10 -10 ------- Run | Yrd Mat Min Traps Triggered 3 | . 3 . Indirectly . | . . . Trap Hack Attempts . | . . . Triggered . | . . . Disarmed . | . . . Reprogrammed . | . . . Reused . | . . . Traps Extracted . | . . . Installed . | . . . Triggered . | . . . Machines | -11 -10 -10 ---------- Run | Yrd Mat Min Machines Disabled . | . . . Max in Single Turn . | . . . Machines Repaired . | . . . Machines Dismantled . | . . . Machines Sabotaged . | . . . Overloaded Fab Kills . | . . . Hacking | -11 -10 -10 --------- Run | Yrd Mat Min Machines Accessed 5 | . 5 . Terminals 4 | . 4 . Fabricators . | . . . Repair Stations 1 | . 1 . Recycling Units . | . . . Scanalyzers . | . . . Garrison Access . | . . . Total Hacks 14 | . 14 . Successful 7 | . 7 . Failed 7 | . 7 . Catastrophic 1 | . 1 . Database Lockouts . | . . . Manual 12 | . 12 . Terminals 12 | . 12 . Fabricators . | . . . Repair Stations 2 | . 2 . Recycling Units . | . . . Scanalyzers . | . . . Garrison Access . | . . . Terminal Hacks 4 | . 4 . Part Schematic 1 | . 1 . Robot Analysis 3 | . 3 . Fabricator Hacks . | . . . Repair Station Hacks 2 | . 2 . Scan Component 1 | . 1 . Repair 1 | . 1 . Recycling Unit Hacks . | . . . Scanalyzer . | . . . Garrison Access Hacks . | . . . Unauthorized Hacks 1 | . 1 . Terminals 1 | . 1 . Botnet 1 | . 1 . Fabricators . | . . . Repair Stations . | . . . Recycling Units . | . . . Scanalyzers . | . . . Garrison Access . | . . . Data Cores Recovered . | . . . Used . | . . . Hacking Detections 4 | . 4 . Full Trace Events . | . . . Feedback Events . | . . . Feedback Blocked . | . . . Robot Schematics Acquired . | . . . Robots Built . | . . . Authchips . | . . . Time . | . . . Total Robot Build Rating . | . . . Part Schematics Acquired 1 | . 1 . Parts Built . | . . . Authchips . | . . . Time . | . . . Total Part Build Rating . | . . . Parts Repaired 1 | . 1 . Time 26 | . 26 . Parts Recycled . | . . . Recycled Matter . | . . . Retrieved Matter . | . . . Retrieved Components . | . . . Parts Scanalyzed . | . . . Part Schematics Acquired . | . . . Parts Damaged . | . . . Bothacking | -11 -10 -10 ------------ Run | Yrd Mat Min Used RIF Installer . | . . . Robots Hacked . | . . . Non-combat . | . . . Combat . | . . . Robot Hacks Applied . | . . . Relay Couplers Released . | . . . Fabnet Peak Effective % . | . . . Robots Rewired . | . . . Allies Hacked . | . . . Hacks Repelled . | . . . Allies | -11 -10 -10 -------- Run | Yrd Mat Min Total Allies . | . . . Largest Group . | . . . Highest-Rated Group . | . . . Highest-Rated Ally . | . . . Total Orders . | . . . Ally Attacks . | . . . Total Damage . | . . . Kills . | . . . Allies Corrupted . | . . . Allies Melted . | . . . Intel | -11 -10 -10 ------- Run | Yrd Mat Min Robot Analysis Total 3 | . 3 . Derelict Logs Recovered . | . . . Drone Launches . | . . . Drone Recoveries . | . . . Exploration | -11 -10 -10 ------------- Run | Yrd Mat Min Turns Passed 1122 | 97 997 28 Spaces Moved 639 | 65 572 2 Core 1 | 1 . . Treads 29 | . 29 . Legs . | . . . Wheels 609 | 64 543 2 Hover . | . . . Flight . | . . . Fastest Speed 50 | 50 100 110 Average Speed 115 | 99 117 112 Slowest Speed 240 | 100 240 115 Overloaded Moves . | . . . Propulsion Burnouts . | . . . Robots Hopped . | . . . Cave-ins Triggered . | . . . Exploration Rate (%) 30 | 4 78 8 Regions Visited 2 Branch Regions 1 Pre-discovered Areas . | . . . Known Exits Taken . | . . . Unknown Exits Taken 2 | 1 1 . Scrap Searched . | . . . Spaces Dug 16 | . 10 6 Terrain Destroyed 32 | . 10 22 Melee . | . . . Projectile . | . . . AOE 32 | . 10 22 Terrain Rammed . | . . . Walls Destroyed . | . . . Machines Disabled . | . . . Actions | -11 -10 -10 --------- Run | Yrd Mat Min Total 833 | 82 737 14 Wait 63 | . 63 . Move 637 | 64 571 2 Hop . | . . . Pick Up 14 | 5 9 . Fast Attach 7 | 7 . . Attach 4 | . 1 3 Detach . | . . . Swap 10 | . 8 2 Drop 3 | . 3 . Fire 95 | 6 82 7 Melee . | . . . Ram . | . . . Kick . | . . . Crush . | . . . Escape Stasis . | . . . Rewire . | . . . Trap . | . . . Miscellaneous . | . . . Route ------- -11/Scrapyard -10/Materials (discovered 2 exits: [*Mat] / [*Min]) -10/Mines History --------- Turn | Location | Event 19 | -11/Scrapyard | Discovered new exit (range 15) 98 | -11/Scrapyard | Entered Materials 170 | -10/Materials | Discovered new exit (range 13) 300 | -10/Materials | Build established: Mutant 492 | -10/Materials | Discovered new exit (range 15) 762 | -10/Materials | Build established: Scavenger-Mutant 978 | -10/Materials | Repaired Grenade Launcher 1095 | -10/Materials | Entered Mines 1096 | -10/Mines | Assembled infested the area 1102 | -10/Mines | Core integrity fell below 50% 1119 | -10/Mines | Core integrity fell below 20% 1123 | -10/Mines | Destroyed by as-21615 with Assembled Blade Last Messages --------------- as-72193 destroyed. as-35300 destroyed. as-05460 destroyed. Lgt. Treads destroyed. as-99481 destroyed. Destroyed Asb. Hover Unit. as-68355 destroyed. Destroyed Asb. Hover Unit. as-93445 destroyed. Knocked back. as-33659 destroyed. as-75043 destroyed. as-18372 destroyed. as-44707 destroyed. Laser Drill disabled. as-55547 destroyed. Wheel destroyed. as-61441 destroyed. Assault Rifle destroyed. Ion Engine destroyed. Map ----- +----------------------------------------------------+ | ???????????????????????????????? | | ???????????????????????????????? | | ???????????????????????????????? | | ???????????????????????????????? | | ???????????????????????????????? | | ???????????????????????????????? | | ???????????????????????????????? | | ???????????????????????????????? | | ???????????????????????????????? | | ???????????????????????????????? | | ???????????????????????????????? | | ???????????????????????????????? | | ???????????????????????????????? | | ????###????????????????????????? | | ????# ????#??????????????????? | | ????# ??? #??????????????????? | | ????# ##? #??????????????????? | | ????# ## #??????????????????? | | ????# ##?????????????????? | | ????# #?????????????????? | | ????# """ #?????????????????? | | ???## """ #??????????????????? | | ??## " #???????????????????? | | ??# #????????????????????? | | ??# ##???????????????????? | | ??# @ ####????????????????? | | ??# aa a !!! ?????????? | | ??# % % ### # #????????? | | ??# #????????? ?????????? | | ?# #????????????????????? | | ?## ????????????????????? | | ??# ###???????????????????? | | ??## ?????????????????????? | | ???# a a ?????????????????????? | | ???# ????????????????????? | | ??? ????????????????????? | | ??? <#####????????????????????? | | ??# #?????????????????????????? | | ??###??????????????????????????? | | ???????????????????????????????? | | ???????????????????????????????? | | | | | | | | | | | | | | | | | | | +----------------------------------------------------+ Best States ------------- Heat Dissipation 25 Energy Generation 10 Energy Capacity 250 Matter Stores 300 Matter Capacity 300 Sight Range 16 Terrain Scan Density 10 Evasion (%) 40 Recoil Reduction 1 Item Schematics ----------------- Huge Storage Unit | -10/Materials | Hacked Robot Schematics ------------------ None Fabricated ------------ Nothing Alien Tech Used ----------------- None Achievements -------------- None Challenges ------------ None Game ------ Seed MetafiberGravityUnit Manual? 0 Play Time 00:09:10 Cumulative 41.8 hours Start 2024.08.15 @ 22:42:18 End 2024.08.15 @ 22:50:44 Sessions 1 Manual Loads 0 Difficulty Rogue Special Mode None Game No. 33 Rogue 33 Adventurer 0 Explorer 0 Win Type - Total 3 Types 3/0/0/0/0/0/0/0/0 Lore% 15 Gallery% 29 Achievement% 26 Wizard Run 0 Options --------- Layout 0 ASCII 0 Keyboard 0 Movement Mouse Keybinds 0 Fullscreen 1 Font 18/SmallcapsGlow Map View 76x50 Zoom Use 0% Tactical HUD 0 Map Filters NONE Filters NONE Steam 1 RUN: 3b36ef55-05d2-49be-a600-afa886d4d5ac